Cogmind - Beta 15 @@@ ROGUE MODE // 2025.06.07 @ 13:51:49 Player: pakman Result: Destroyed by Y-64 Sentinel with Wave Gun Performance ------------- Evolutions (5) 2500 Regions Visited (5) 1000 Robots Destroyed (41) 205 Value Destroyed (866) 866 Prototype IDs (8) 160 Alien Tech Used (0) 0 Bonus (800) 800 TOTAL SCORE: 5531 Bonus ------- Registered with UFD 300 Met Optimus in HQ 500 Cogmind --------- Core Integrity 0/1000 Matter 57/300 Energy 98/100 System Corruption 23% Temperature Cool (9) Movement Core (50) Location -5/Factory Parts ------- > --- POWER (2) -------- (None) > --- PROPULSION (5) --- (None) > --- UTILITY (7) ------ (None) > --- WEAPON (3) ------- (None) > --- INVENTORY (5) ---- Mass Driver Mini Grenade Launcher CPS Tube (2) Junk Cannon (5) Peak State ------------ > --- POWER ------------ Deuterium Engine Deuterium Engine > --- PROPULSION ------- Armored Treads Armored Treads Medium Treads Compact Wheel Compact Wheel > --- UTILITY ---------- Scrap Suit Large Storage Unit Improved Sensor Array Advanced Signal Interpreter Kinecellerator Hardened Light Armor Plating > --- WEAPON ----------- Junk Cannon Power Sword > --- INVENTORY -------- ECM Suite Improved Propulsion Shielding Flak Gun Advanced Assault Cannon Magnetic Acceleration Cannon Mini Grenade Launcher CPS Tube [Rating: 60] Favorites ----------- Power Light Ion Engine Engine Light Ion Engine Power Core Enhanced Fission Core Propulsion Compact Wheel Treads Armored Treads Leg Aluminum Leg Wheel Compact Wheel Flight Unit Flight Unit Utility Medium Storage Unit Device Seismic Detector Storage Medium Storage Unit Processor Advanced Signal Interpreter Protection Improved Propulsion Shielding Weapon Battle Cannon Energy Gun Subdweller Laser Ballistic Gun Light Assault Rifle Ballistic Cannon Battle Cannon Special Weapon Mining Laser Slashing Weapon Power Sword Build | -11 -10 -10 -7 -7 -5 ------- Run | Yrd Mat Sub Rec Scr Fac Slots Evolved 10 | . . . . . 10 Power 1 | . . . . . 1 Propulsion 3 | . . . . . 3 Utility 5 | . . . . . 5 Weapon 1 | . . . . . 1 Parts Attached 55 | 1 15 16 6 3 14 Power 9 | . 2 2 2 1 2 Engine 8 | . 2 2 2 1 1 Core 1 | . . . . . 1 Reactor . | . . . . . . Propulsion 14 | . 5 3 3 . 3 Treads 3 | . . . . . 3 Leg 1 | . . . 1 . . Wheel 8 | . 3 3 2 . . Hover . | . . . . . . Flight 2 | . 2 . . . . Utility 11 | 1 2 1 1 1 5 Device 5 | 1 . 1 . . 3 Storage 3 | . 2 . . 1 . Processor 1 | . . . . . 1 Hackware . | . . . . . . Protection 2 | . . . 1 . 1 Artifact . | . . . . . . Weapon 21 | . 6 10 . 1 4 Energy Gun 4 | . . 4 . . . Energy Cannon . | . . . . . . Ballistic Gun 9 | . 6 1 . . 2 Ballistic Cannon 5 | . . 4 . . 1 Launcher . | . . . . . . Special Weapon 2 | . . 1 . 1 . Impact Weapon . | . . . . . . Slashing Weapon 1 | . . . . . 1 Piercing Weapon . | . . . . . . Special Melee Weapon . | . . . . . . Unidentified Prototypes 2 | . . . . 1 1 Parts Lost 19 | . 3 7 . . 9 Power 4 | . 1 1 . . 2 Propulsion 5 | . 2 2 . . 1 Utility 6 | . . . . . 6 Weapon 4 | . . 4 . . . Highest Loss Streak 8 | . 3 3 . . 8 To Critical Strikes 1 | . . . . . 1 Average Backups 10 | 6 7 9 10 11 8 Power . | 1 . . 1 . . Propulsion 1 | 4 . . . 2 . Utility 3 | . 2 4 3 4 1 Weapon 4 | 1 3 4 4 3 5 Tool/Special . | . . . . . . Unused Backups 20 | . 6 1 1 4 8 Power 4 | . 1 . . 2 1 Propulsion . | . . . . . . Utility 6 | . 2 1 1 1 1 Weapon 8 | . 3 . . . 5 Tool/Special 2 | . . . . 1 1 Average Slot Usage (%) 91 | . 98 93 97 92 77 Engine 11 | . 13 9 14 14 6 Treads 2 | . . . . . 12 Leg 1 | . 15 . 2 . . Wheel 21 | . 11 26 23 28 9 Device 7 | . 13 14 . . 15 Storage 12 | . 14 14 14 14 4 Protection 7 | . . . 13 14 4 Energy Gun 1 | . 1 4 . . . Ballistic Gun 4 | . 26 5 . . 4 Ballistic Cannon 8 | . . 14 19 6 2 Special Weapon 7 | . . 3 8 14 2 Peak Build Rating 60 | 7 8 12 16 26 60 Average Rating 20 | 6 6 9 12 18 52 On Entrance 11 | 6 7 8 11 11 26 Naked Turns 141 | . . . . . 141 Heaviest Build 72 | 13 26 23 23 45 72 Greatest Support 68 | 20 20 40 32 32 68 Greatest Overweight (x) 2 | . 2 2 2 1 1 Average Overweight (x) . | . . . . . . Largest Inventory Capacity 15 | 8 15 10 10 15 15 Average Capacity 11 | 8 8 10 10 13 14 Most Carried 15 | 7 10 10 10 15 14 Average Carried 10 | 6 7 9 9 12 8 Final Capacity 15 | 8 10 10 10 15 5 Final Carried 15 | 7 10 10 10 15 5 Class Distribution -------------------- 47% | Scavenger-Mutant 35% | Mutant 11% | Derelict-Skirmisher 5% | Derelict-Mutant Dominant Class ---------------- Mutant | -10/Materials Scavenger-Mutant | -10/Subcaves Scavenger-Mutant | -7/Recycling Mutant | -7/Scraptown Derelict-Skirmisher | -5/Factory Resources | -11 -10 -10 -7 -7 -5 ----------- Run | Yrd Mat Sub Rec Scr Fac Matter Collected 1651 | 213 272 519 380 30 237 Remotely . | . . . . . . Salvage Created 1109 | 75 250 314 279 . 191 Parts 77 | 9 24 25 12 . 7 Haulers Intercepted 1 | . 1 . . . . Recyclers Shooed 4 | 1 . . 2 . 1 Parts Field Recycled . | . . . . . . Retrieved Matter . | . . . . . . Parts Self-Destructed 11 | . . 11 . . . Prevented . | . . . . . . Kills | -11 -10 -10 -7 -7 -5 ------- Run | Yrd Mat Sub Rec Scr Fac Combat Hostiles Destroyed 27 | . 8 14 . . 5 Guns 13 | . 8 4 . . 1 Cannons 11 | . . 8 . . 3 AOE 2 | . . 2 . . . Classes Destroyed 12 | 2 4 1 1 . 4 Worker 3 | . 2 . . . 1 Builder 2 | . . . 1 . 1 Tunneler 2 | 1 1 . . . . Hauler 1 | . 1 . . . . Recycler 3 | 1 . . 2 . . Mechanic 1 | . . . . . 1 Watcher 2 | . 2 . . . . Swarmer 15 | . 8 7 . . . Grunt 1 | . . . . . 1 Sentry 1 | . . . . . 1 Programmer 3 | . . . . . 3 Subdweller 7 | . . 7 . . . Best Kill Streak 4 | 2 4 4 1 . 2 Combat Bots Only 4 | . 3 4 . . 2 Max Kills in Single Turn 2 | 1 1 2 1 . 1 Gunslinging . | . . . . . . Exploded 2 | . . 2 . . . Melee . | . . . . . . Uniques/NPCs Destroyed . | . . . . . . Combat | -11 -10 -10 -7 -7 -5 -------- Run | Yrd Mat Sub Rec Scr Fac Hostile Shots Fired 406 | . 97 83 . . 226 Missed 150 | . 29 38 . . 83 Hits 256 | . 68 45 . . 143 Projectile 256 | . 68 45 . . 143 Critical Strikes 18 | . 1 . . . 17 Damage Taken 4256 | . 596 798 . . 2862 Core 1247 | . 116 118 . . 1013 Absorbed by Shields . | . . . . . . Redirected to Shielding 68 | . . . . . 68 Regen/Repaired (Parts) 41 | . 11 . . . 30 Core Remaining (%) 53 | 100 . . . 6 . Volleys Fired 225 | 3 52 100 26 . 44 Largest 3 | 2 2 2 2 . 3 Hottest 120 | 60 60 120 100 . 101 Shots Fired 381 | 6 104 165 35 . 71 Gun 183 | 6 104 47 . . 26 Cannon 160 | . . 103 18 . 39 Launcher . | . . . . . . Special 38 | . . 15 17 . 6 Kinetic 304 | 3 97 121 18 . 65 Thermal 56 | 3 7 29 17 . . Explosive . | . . . . . . Electromagnetic 15 | . . 15 . . . Impact 6 | . . . . . 6 Robot Hit Streak 16 | 3 6 13 16 . 7 Robot Miss Streak 6 | 1 4 3 2 . 6 Penetration Max 1 | . . . . . 1 Secondary Targets 3 | . 3 . . . . Max Gunslinging Chain 1 | . 1 . . . . Shots Hit Robots 186 | 4 53 55 25 . 49 Core Hits 84 | 3 23 24 8 . 26 Critical Kills . | . . . . . . Critical Parts Destroyed 2 | . 1 . . . 1 Critical Strikes 7 | . 1 3 . . 3 Destroy 1 | . 1 . . . . Blast 4 | . . 2 . . 2 Corrupt 1 | . . 1 . . . Smash 1 | . . . . . 1 Melee Attacks 3 | . . . . . 3 Impact . | . . . . . . Slashing 3 | . . . . . 3 Piercing . | . . . . . . Sneak Attacks . | . . . . . . Combat Hostiles . | . . . . . . Follow-up Attacks . | . . . . . . Damage Inflicted 3654 | 38 494 884 561 . 1677 Guns 1311 | 38 494 349 . . 430 Cannons 1691 | . . 432 321 . 938 Explosions 103 | . . 103 . . . Melee . | . . . . . . Ramming 28 | . . . . . 28 Kinetic 2706 | 16 459 542 321 . 1368 Thermal 532 | 22 35 235 240 . . Explosive . | . . . . . . Electromagnetic 107 | . . 107 . . . Impact 281 | . . . . . 281 Slashing . | . . . . . . Piercing . | . . . . . . Highest Corruption 23 | . . . . . 23 Average Corruption 5 | . . . . . 5 Corruption Purged . | . . . . . . Corruption Blocked . | . . . . . . Effects 26 | . . . . . 26 Message Errors 8 | . . . . . 8 Matter Fused 4 | . . . . . 4 Heat Flow Errors 2 | . . . . . 2 Energy Discharges 1 | . . . . . 1 Parts Rejected 3 | . . . . . 3 Data Loss (minor) 2 | . . . . . 2 Data Loss (major) 2 | . . . . . 2 Misfires 1 | . . . . . 1 Alerts 1 | . . . . . 1 Misdirections 2 | . . . . . 2 Overload Shots . | . . . . . . Overflow Damage 177 | . . 7 14 . 156 Projectiles 170 | . . . 14 . 156 Explosions 7 | . . 7 . . . Melee . | . . . . . . Knockbacks 15 | . . 4 1 . 10 Impact . | . . . . . . Kinetic 15 | . . 4 1 . 10 Secondary . | . . . . . . Self-Inflicted Damage 75 | . . 68 . . 7 Shots 2 | . . 2 . . . Rammed 5 | . . . . . 5 Targets Rammed 5 | . . . . . 5 Kicked . | . . . . . . Crushed . | . . . . . . Highest Temperature 254 | 40 40 . 80 . 254 Average Temperature 49 | 19 21 . 21 . 97 Received Heat Transfer 351 | . . 153 . . 198 Effects 1 | . . . . . 1 Energy Bleed 1 | . . . . . 1 Siege Activations . | . . . . . . Martial Activations . | . . . . . . Shielding Activations . | . . . . . . Robots Disrupted . | . . . . . . Combat Hostiles . | . . . . . . Robots Corrupted 1 | . . . . . 1 Combat Hostiles 1 | . . . . . 1 Parts Fried 1 | . . . . . 1 Impact Corruptions 2 | . . . . . 2 Robots Melted . | . . . . . . Combat Hostiles . | . . . . . . Parts Melted . | . . . . . . Heat Transferred 975 | 50 75 350 500 . . Parts Sabotaged . | . . . . . . Parts Stolen . | . . . . . . Parts Stripped . | . . . . . . Power Chain Reactions 2 | . . 2 . . . Alert | -11 -10 -10 -7 -7 -5 ------- Run | Yrd Mat Sub Rec Scr Fac Maximum Alert Level . | . . . . . . Low Security (%) 100 | 100 100 . 100 . 100 Level 1 . | . . . . . . Level 2 . | . . . . . . Level 3 . | . . . . . . Level 4 . | . . . . . . Level 5 . | . . . . . . High Security . | . . . . . . Max Security . | . . . . . . Peak Influence 138 | 10 70 . 98 . 138 Initial 98 | . . . 98 . . Average 16 | 4 20 . 10 . 18 Influence Increases 1205 | 10 255 480 101 . 359 Destroy 0b10 Robot/C 400 | . 160 140 . . 100 Destroy 0b10 Robot/NC 95 | 10 30 . 40 . 15 Destroy Leader 76 | . 36 10 . . 30 Successful Hack 82 | . 29 . 53 . . Disable Machine 30 | . . . . . 30 Destroy Structure 42 | . . . 8 . 34 Lose Combat Pursuer 480 | . . 330 . . 150 Influence Decreases 1075 | 10 254 275 307 . 229 Entered New Map 109 | . . 1 108 . . Time Decay 850 | 10 224 234 193 . 189 Lost Part 110 | . 30 40 . . 40 Purge Threat 6 | . . . 6 . . Squads Dispatched 4 | . . . . . 4 Investigation 2 | . . . . . 2 Extermination 2 | . . . . . 2 Reinforcement . | . . . . . . Assault . | . . . . . . Garrison . | . . . . . . Intercept . | . . . . . . Searches Triggered . | . . . . . . Construction Impeded . | . . . . . . Haulers Reinforced . | . . . . . . Active Scanning Responses . | . . . . . . Cargo Convoy Interrupts . | . . . . . . Stealth | -11 -10 -10 -7 -7 -5 --------- Run | Yrd Mat Sub Rec Scr Fac Distress Signals 3 | . 2 . . . 1 Communications Jammed . | . . . . . . Distress Signals . | . . . . . . Times Spotted 71 | . 19 25 . . 27 Peak Tracking Total 13 | . 6 6 . . 13 Tactical Retreats 13 | . . 10 . . 3 Traps | -11 -10 -10 -7 -7 -5 ------- Run | Yrd Mat Sub Rec Scr Fac Traps Triggered 3 | . 1 1 . . 1 Indirectly . | . . . . . . Trap Hack Attempts . | . . . . . . Triggered . | . . . . . . Disarmed . | . . . . . . Reprogrammed . | . . . . . . Reused . | . . . . . . Traps Extracted . | . . . . . . Installed . | . . . . . . Triggered . | . . . . . . Machines | -11 -10 -10 -7 -7 -5 ---------- Run | Yrd Mat Sub Rec Scr Fac Machines Disabled 4 | . . 2 . . 2 Max in Single Turn 1 | . . 1 . . 1 Machines Repaired . | . . . . . . Machines Dismantled . | . . . . . . Machines Sabotaged . | . . . . . . Overloaded Fab Kills . | . . . . . . Hacking | -11 -10 -10 -7 -7 -5 --------- Run | Yrd Mat Sub Rec Scr Fac Machines Accessed 28 | . 9 1 12 3 3 Terminals 16 | . 8 . 6 . 2 Fabricators 1 | . . . . . 1 Repair Stations 1 | . 1 . . . . Recycling Units 6 | . . . 6 . . Scanalyzers . | . . . . . . Garrison Access . | . . . . . . Total Hacks 69 | . 24 8 25 6 6 Successful 43 | . 13 8 13 6 3 Failed 26 | . 11 . 12 . 3 Catastrophic 6 | . . . 4 . 2 Database Lockouts . | . . . . . . Manual 21 | . 12 . 5 1 3 Terminals 42 | . 22 . 16 . 4 Fabricators 2 | . . . . . 2 Repair Stations 2 | . 2 . . . . Recycling Units 9 | . . . 9 . . Scanalyzers . | . . . . . . Garrison Access . | . . . . . . Terminal Hacks 26 | . 8 8 4 6 . Record 16 | . 2 8 1 5 . Part Schematic 2 | . . . 2 . . Unreport Threat 1 | . . . 1 . . Locate Traps 1 | . 1 . . . . Transport Status 1 | . 1 . . . . Recall Investigation 1 | . 1 . . . . Hauler Manifests 1 | . 1 . . . . Zone Layout 2 | . 2 . . . . Proto ID Catalog 1 | . . . . 1 . Fabricator Hacks 1 | . . . . . 1 Load Schematic 1 | . . . . . 1 Repair Station Hacks 2 | . 2 . . . . Scan Component 1 | . 1 . . . . Repair 1 | . 1 . . . . Recycling Unit Hacks 7 | . . . 7 . . Process 1 | . . . 1 . . Report Inventory 6 | . . . 6 . . Scanalyzer . | . . . . . . Garrison Access Hacks . | . . . . . . Unauthorized Hacks 7 | . 3 . 2 . 2 Terminals 7 | . 3 . 2 . 2 Botnet 6 | . 3 . 2 . 1 Sabotage 1 | . . . . . 1 Fabricators . | . . . . . . Repair Stations . | . . . . . . Recycling Units . | . . . . . . Scanalyzers . | . . . . . . Garrison Access . | . . . . . . Data Cores Recovered . | . . . . . . Used . | . . . . . . Hacking Detections 19 | . 9 . 8 . 2 Full Trace Events 6 | . 2 . 4 . . Feedback Events . | . . . . . . Feedback Blocked . | . . . . . . Robot Schematics Acquired . | . . . . . . Robots Built . | . . . . . . Authchips . | . . . . . . Time . | . . . . . . Total Robot Build Rating . | . . . . . . Part Schematics Acquired 2 | . . . 2 . . Parts Built . | . . . . . . Authchips . | . . . . . . Time . | . . . . . . Total Part Build Rating . | . . . . . . Parts Repaired 1 | . 1 . . . . Time 26 | . 26 . . . . Parts Recycled . | . . . . . . Recycled Matter 146 | . . . 146 . . Retrieved Matter . | . . . . . . Retrieved Components . | . . . . . . Parts Scanalyzed . | . . . . . . Part Schematics Acquired . | . . . . . . Parts Damaged . | . . . . . . Bothacking | -11 -10 -10 -7 -7 -5 ------------ Run | Yrd Mat Sub Rec Scr Fac Used RIF Installer . | . . . . . . Robots Hacked . | . . . . . . Non-combat . | . . . . . . Combat . | . . . . . . Robot Hacks Applied . | . . . . . . Relay Couplers Released . | . . . . . . Fabnet Peak Effective % . | . . . . . . Robots Rewired . | . . . . . . Allies Hacked . | . . . . . . Hacks Repelled . | . . . . . . Allies | -11 -10 -10 -7 -7 -5 -------- Run | Yrd Mat Sub Rec Scr Fac Total Allies . | . . . . . . Largest Group . | . . . . . . Highest-Rated Group . | . . . . . . Highest-Rated Ally . | . . . . . . Total Orders . | . . . . . . Ally Attacks . | . . . . . . Total Damage . | . . . . . . Kills . | . . . . . . Allies Corrupted . | . . . . . . Allies Melted . | . . . . . . Intel | -11 -10 -10 -7 -7 -5 ------- Run | Yrd Mat Sub Rec Scr Fac Active Infowar (turns) 3916 | 20 790 1784 6 . 1316 Optics 123 | . . 117 6 . . Sensors 1316 | . . . . . 1316 Seismic 2477 | 20 790 1667 . . . Robot Analysis Total . | . . . . . . Derelict Logs Recovered 3 | . . 1 . 2 . Drone Launches . | . . . . . . Drone Recoveries . | . . . . . . Exploration | -11 -10 -10 -7 -7 -5 ------------- Run | Yrd Mat Sub Rec Scr Fac Turns Passed 7885 | 36 816 1784 1108 2644 1497 Spaces Moved 6239 | 20 584 1520 917 2436 762 Core 279 | . 3 . . . 276 Treads 486 | . . . . . 486 Legs 378 | 20 269 . 89 . . Wheels 5087 | . 303 1520 828 2436 . Hover . | . . . . . . Flight 9 | . 9 . . . . Fastest Speed 37 | 120 37 80 90 100 50 Average Speed 112 | 120 99 94 108 107 176 Slowest Speed 250 | 120 150 120 190 115 250 Overloaded Moves . | . . . . . . Propulsion Burnouts . | . . . . . . Robots Hopped . | . . . . . . Potential Cave-ins . | . . . . . . Cave-ins Triggered . | . . . . . . Exploration Rate (%) 57 | 3 76 47 97 95 25 Regions Visited 5 Branch Regions 3 Pre-discovered Areas . | . . . . . . Known Exits Taken . | . . . . . . Unknown Exits Taken 5 | 1 1 1 1 1 . Scrap Searched 9 | . . 4 . 5 . Spaces Dug 7 | . . 4 . . 3 Terrain Destroyed 34 | . . 9 8 . 17 Melee 3 | . . . . . 3 Projectile 27 | . . 5 8 . 14 AOE 4 | . . 4 . . . Terrain Rammed . | . . . . . . Walls Destroyed . | . . . . . . Machines Disabled . | . . . . . . Actions | -11 -10 -10 -7 -7 -5 --------- Run | Yrd Mat Sub Rec Scr Fac Total 6710 | 26 736 1664 961 2476 847 Wait 71 | . 55 5 . 5 6 Move 6234 | 19 583 1519 916 2435 762 Hop . | . . . . . . Pick Up 46 | 2 12 6 2 17 7 Fast Attach 18 | 1 8 3 4 . 2 Attach 20 | . 1 6 . 1 12 Detach 7 | . 2 1 . . 4 Swap 35 | . 7 19 5 2 2 Drop 46 | 1 16 5 8 16 . Fire 225 | 3 52 100 26 . 44 Melee 3 | . . . . . 3 Ram 4 | . . . . . 4 Kick . | . . . . . . Crush 1 | . . . . . 1 Escape Stasis . | . . . . . . Rewire . | . . . . . . Trap . | . . . . . . Miscellaneous . | . . . . . . Route ------- -11/Scrapyard -10/Materials (discovered 4 exits: [*Mat x2] / [*Min] / *Sub) -10/Subcaves (discovered 2 exits: [*Mat] / *Rec) -7/Recycling (discovered 2 exits: *Fac / *Scr) -7/Scraptown (discovered 2 exits: *Fac x2) -5/Factory (discovered 1 exit: [*Upp]) History --------- Turn | Location | Event 4 | -11/Scrapyard | Discovered new exit (range 3) 37 | -11/Scrapyard | Entered Materials 260 | -10/Materials | Discovered new exit (range 15) 304 | -10/Materials | Build established: Mutant 514 | -10/Materials | Lost 3 parts (1p2n) 610 | -10/Materials | Discovered new exit (range 9) 633 | -10/Materials | Discovered new exit (range 11) 709 | -10/Materials | Repaired Seismic Detector 727 | -10/Materials | Discovered new exit (range 15) 803 | -10/Materials | Build established: Scavenger-Mutant 853 | -10/Materials | Entered Subcaves 854 | -10/Subcaves | Learned Materials emergency access door positions 857 | -10/Subcaves | Shifting Twisted Machinery released Battle Cannon 858 | -10/Subcaves | Shifting Twisted Machinery released Battle Rifle 985 | -10/Subcaves | Core integrity fell below 50% 1121 | -10/Subcaves | Lost 3 parts (1p2w) 1183 | -10/Subcaves | Discovered new exit (range 14) 1533 | -10/Subcaves | Visited 4L-MR0's lab 1581 | -10/Subcaves | Shifting Twisted Machinery released Sub. Laser 1600 | -10/Subcaves | A Subdweller sparked back to life 1600 | -10/Subcaves | A Subdweller sparked back to life 1600 | -10/Subcaves | A Subdweller sparked back to life 1688 | -10/Subcaves | Core integrity fell below 20% 1773 | -10/Subcaves | Lost 3 parts (2n1w) 1859 | -10/Subcaves | Shifting Twisted Machinery released Sub. Machine Gun 1894 | -10/Subcaves | Shifting Twisted Machinery released Flamer 2636 | -10/Subcaves | Discovered new exit (range 2) 2637 | -10/Subcaves | Entered Recycling 2638 | -7/Recycling | Joined Warlord attack on 0b10 via Recycling 2701 | -7/Recycling | Build established: Mutant 2914 | -7/Recycling | Discovered new exit (range 6) 3166 | -7/Recycling | Scanned before Scraplab entrance 3342 | -7/Recycling | Build established: Scavenger-Mutant 3707 | -7/Recycling | Entered Scraplab 3741 | -7/Recycling | Discovered new exit (range 4) 3745 | -7/Recycling | Entered Scraptown 4086 | -7/Scraptown | Scanned Subdweller tech in exchange for log data 4089 | -7/Scraptown | Learned Factory garrison access intel 4090 | -7/Scraptown | Learned Factory emergency access door positions 4116 | -7/Scraptown | Visited Cave Peace 4161 | -7/Scraptown | Visited Cyclists 4184 | -7/Scraptown | Visited Assassins FH 4451 | -7/Scraptown | Visited Awakened 4494 | -7/Scraptown | Heard Great Nut preacher, LISTEN AND RECITE! 4499 | -7/Scraptown | Visited TADAMA 4530 | -7/Scraptown | Visited Comm Corps 4602 | -7/Scraptown | Discovered new exit (range 7) 4904 | -7/Scraptown | Visited UFD Registry 4904 | -7/Scraptown | Registered with UFD as "Novaforce" 4945 | -7/Scraptown | Entered Cyclist Reading Room 5013 | -7/Scraptown | Visited Junk Cannon Lab 5020 | -7/Scraptown | Found Prototype Special Weapon 5022 | -7/Scraptown | Identified Junk Cannon 5328 | -7/Scraptown | Build established: Mutant 5482 | -7/Scraptown | Visited Scrapoid Research Area 5515 | -7/Scraptown | Visited Abandonware Association 5533 | -7/Scraptown | Learned abandonware demo "ERRANTS.EXE" 5533 | -7/Scraptown | Learned abandonware demo "REVENGE.EXE" 5787 | -7/Scraptown | Visited DA-N13 Charitable Foundation 5792 | -7/Scraptown | Found DCF Scrap (31 items) 5883 | -7/Scraptown | Visited Scrap Suit Storage 5892 | -7/Scraptown | Found Scrap Suit 5924 | -7/Scraptown | Visited Junk Repository 5983 | -7/Scraptown | Visited Supply Room 6023 | -7/Scraptown | Visited Science Testing Area 6049 | -7/Scraptown | Visited Science Guys 6313 | -7/Scraptown | Met Optimus 6313 | -7/Scraptown | Accepted into 0bPrime 6380 | -7/Scraptown | Discovered new exit (range 5) 6389 | -7/Scraptown | Entered Factory 6389 | -5/Factory | Evolved 10 slots: Power x1, Propulsion x3, Utility x5, Weapon x1 6391 | -5/Factory | Loaded intel: 4 garrison access locations 6686 | -5/Factory | Build established: Derelict-Mutant 7139 | -5/Factory | Build established: Derelict-Skirmisher 7724 | -5/Factory | System corruption reached 10% 7745 | -5/Factory | Released all parts (5) 7775 | -5/Factory | Lost 8 parts (1p1n6u) 7797 | -5/Factory | Core integrity fell below 50% 7868 | -5/Factory | Discovered new exit (range 16) 7883 | -5/Factory | Core integrity fell below 20% 7886 | -5/Factory | Destroyed by Y-64 Sentinel with Wave Gun Last Messages --------------- SYSTEM_VULNERABLE[Fusion Modulator] NETWORK_OVERLOAD_FAIL 07774_ ALERT: Suspicious activity at Terminal F008. Dispatching Investigation squad. 07778_ W#KZTJBWQDQRROILXZTB 07780_ O-24 Administrator: "IFF HANDSHAKE FAILED. SECURING TERMINAL." 07790_ Slammed into P-70 Sage. 07795_ Door malfunctions. 07796_ 9EI5L|RV >RNCCKIY%6Q>Y2<>MV&#OYF/ 07882_ Penetrated by Slug. Map ----- +----------------------------------------------------+ | ?????????????????????????????????????????????????? | | ?????????????????????????????????????????????????? | | ?????????????????????????????????????????????????? | | ?????????????????????????????????????????????????? | | ?????????????????????????????????????????????????? | | ?????????????????????????????????????????????????? | | ?????????????????????????????????????????????????? | | ?????????????????????????????????????????????????? | | ?????????????????????????????????????????????????? | | ?????????????????????????????????????????????????? | | ???????????????????????? ?????????????????????? | | ???????????????????????? ???????????????????? | | ???????????????????????? ?????????????????? | | ???????????????????????# ?????????????????? | | ???????????????????????# #?????????????????? | | ??????????????????????## ##????????????????? | | ??????????????????????#! #????????????????? | | ??????????????????????# #????????????????? | | ??????????????????????# #????????????????? | | ??????????????????????# #????????????????? | | ??????????????????????# Y #????????????????? | | ??????????????????????# #????????????????? | | ??????????????????????# #????????????????? | | ??????????????????????# #????????????????? | | ??????????????????????? #????????????????? | | ????????????????????????#@ #??????????????????? | | ????????????????????????# #??????????????????? | | ?????????# ?????????????# #??????????????????? | | ?????????# ?????????????# ##########?????????? | | ?????????# ?????????????# # #?????????? | | ?????????# ????########## # """" #?????????? | | ?????????# ????# # # """" #?????????? | | ?????????# ##### """ # # ! """" #?????????? | | ?????????# # """ # # """" #?????????? | | ?????????# # """ # p # """" #?????????? | | ?????????+ + + pp/ """ #?????????? | | ?????????# # # p# """" #?????????? | | "????????# # / !# # #?????????? | | ?????????# #[[ # ##########?????????? | | "????????# #[ !# #??????????????????? | | ?????????# ########## #??????????????????? | | ?????????# #????????# #??????????????????? | | ########## #????????# #??????????????????? | | ! + #????????# #??????????????????? | | # #????????# #??????????????????? | | # #????????# #??????????????????? | | """" # #????????# #??????????????????? | | """" # #????????# #??????????????????? | | """" # #????????# #??????????????????? | | """" # #????????/ #??????????????????? | +----------------------------------------------------+ Best States ------------- Heat Dissipation 40 Energy Generation 30 Energy Capacity 525 Matter Stores 300 Matter Capacity 300 Sight Range 21 Robot Scan Range 15 Terrain Scan Density 10 Armor Coverage 150 Propulsion Shielding 66 Evasion (%) 55 Recoil Reduction 3 Kinecelleration 30 Item Schematics ----------------- Matter Filter | -7/Recycling | Hacked Adv. Assault Cannon | -7/Recycling | Hacked Robot Schematics ------------------ None Fabricated ------------ Nothing Repaired ---------- Seismic Detector | 45% | -10/Materials Alien Tech Used ----------------- None Achievements -------------- None Challenges ------------ None Game ------ Seed PropulsionScrapoidConstruct Manual? 0 Play Time 01:27:30 Cumulative 75.4 hours Start 2025.06.07 @ 12:28:09 End 2025.06.07 @ 13:51:49 Sessions 1 Manual Loads 0 Difficulty Rogue Special Mode None Game No. 80 Rogue 80 Adventurer 0 Explorer 0 Win Type - Total 0 Types 0/0/0/0/0/0/0/0/0/0 Lore% 47 Gallery% 33 Achievement% 30 Wizard Run 0 Options --------- Layout 0 ASCII 0 Keyboard 1 Movement Numpad Keybinds 0 Fullscreen 2 Font 18/SmallcapsGlow Map View 76x50 Zoom Use 0% Tactical HUD 1 Map Filters NONE Filters NONE Steam 1 RUN: b0e19914-adcd-4934-9f37-8fac29ecbf10